fUSD/lending_fUSD_20251220
["ID","MTS","AMOUNT","RATE_DAILY","PERIOD"]
[399246044,1766201450167,-500.0,0.00016999,2]
[399246045,1766201450177,-500.0,0.00016999,2]
[399246046,1766201450199,-500.0,0.00016999,2]
[399246047,1766201450209,-505.83670147,0.00016999,2]
[399246048,1766201450219,-517.41741792,0.00016999,2]
[399246049,1766201450228,-500.0,0.00016999,2]
[399246050,1766201450239,-500.0,0.00016999,2]
[399246051,1766201450249,-500.0,0.00016999,2]
[399246052,1766201450258,-500.0,0.00016999,2]
[399246053,1766201450268,-500.0,0.00016999,2]
[399246054,1766201450277,-500.0,0.00016999,2]
[399246055,1766201450286,-500.0,0.00016999,2]
[399246056,1766201450298,-500.0,0.00016999,2]
[399246057,1766201450307,-500.0,0.00016999,2]
[399246058,1766201450317,-500.0,0.00016999,2]
[399246059,1766201450326,-500.0,0.00016999,2]
[399246060,1766201450336,-500.0,0.00016999,2]
[399246061,1766201450345,-500.0,0.00016999,2]
[399246062,1766201450354,-541.48637229,0.00016999,2]
[399246063,1766201450364,-500.0,0.00016999,2]
[399246064,1766201450374,-500.0,0.00016999,2]
[399246065,1766201450383,-543.43338651,0.00016999,2]
[399246066,1766201450393,-500.0,0.00016999,2]
[399246067,1766201450402,-500.0,0.00016999,2]
[399246068,1766201450412,-500.0,0.00016999,2]
[399246069,1766201450423,-156.42387419,0.00016999,2]
[399246070,1766201450433,-500.0,0.00016999,2]
[399246071,1766201450443,-500.0,0.00016999,2]
[399246072,1766201450452,-500.0,0.00016999,2]
[399246073,1766201450462,-500.0,0.00016999,2]
[399246074,1766201450471,-500.0,0.00016999,2]
[399246075,1766201450481,-244.59651847,0.00016999,2]
[399246076,1766201450491,-500.0,0.00016999,2]
[399246077,1766201450500,-500.0,0.00016999,2]
[399246079,1766201450510,-500.0,0.00016999,2]
[399246080,1766201450519,-500.0,0.00016999,2]
[399246081,1766201450529,-500.0,0.00016999,2]
[399246082,1766201450538,-500.0,0.00016999,2]
[399246083,1766201450548,-500.0,0.00016999,2]
[399246084,1766201450557,-500.0,0.00016999,2]
[399246085,1766201450566,-500.0,0.00016999,2]
[399246086,1766201450578,-260.01917159,0.00016999,2]
[399246087,1766201450588,-500.0,0.00016999,2]
[399246088,1766201450598,-500.0,0.00016999,2]
[399246089,1766201450607,-500.0,0.00016999,2]
[399246090,1766201450618,-500.0,0.00016999,2]
[399246091,1766201450628,-500.0,0.00016999,2]
[399246092,1766201450637,-500.0,0.00016999,2]
[399246093,1766201450647,-500.0,0.00016999,2]
[399246094,1766201450658,-469.51043734,0.00016999,2]
[399246095,1766201450667,-500.0,0.00016999,2]
[399246096,1766201450677,-214.74412357,0.00016999,2]
[399246097,1766201450686,-500.0,0.00016999,2]
[399246098,1766201450696,-500.0,0.00016999,2]
[399246099,1766201450705,-500.0,0.00016999,2]
[399246100,1766201450714,-487.95660004,0.00016999,2]
[399246101,1766201450724,-500.0,0.00016999,2]
[399246102,1766201450734,-500.0,0.00016999,2]
[399246103,1766201450743,-500.0,0.00016999,2]
[399246104,1766201450753,-500.0,0.00016999,2]
[399246105,1766201450762,-500.0,0.00016999,2]
[399246106,1766201450771,-500.0,0.00016999,2]
[399246107,1766201450781,-531.25264543,0.00016999,2]
[399246108,1766201450791,-500.0,0.00016999,2]
[399246109,1766201450800,-500.0,0.00016999,2]
[399246110,1766201450810,-510.77645617,0.00016999,2]
[399246111,1766201450819,-501.12856212,0.00016999,2]
[399246112,1766201450829,-500.0,0.00016999,2]
[399246113,1766201450839,-505.03580841,0.00016999,2]
[399246114,1766201450848,-500.0,0.00016999,2]
[399246115,1766201450858,-500.0,0.00016999,2]
[399246116,1766201450867,-506.44561835,0.00016999,2]
[399246117,1766201450878,-500.0,0.00016999,2]
[399246118,1766201450888,-260.33789622,0.00016999,2]
[399246119,1766201450898,-500.0,0.00016999,2]
[399246121,1766201450907,-500.0,0.00016999,2]
[399246122,1766201450917,-500.0,0.00016999,2]
[399246123,1766201450927,-500.0,0.00016999,2]
[399246124,1766201450937,-500.0,0.00016999,2]
[399246125,1766201450947,-500.0,0.00016999,2]
[399246126,1766201450956,-502.26583075,0.00016999,2]
[399246127,1766201450966,-308.45911544,0.00016999,2]
[399246128,1766201450975,-2394032.62891127,0.00017,2]
[399246129,1766201450985,-250.0,0.00017,2]
[399246130,1766201450995,-1000.0,0.00017,2]
[399246131,1766201451004,-156927.82323285,0.00017,2]
[399246132,1766201451281,-17999.6,0.00017,2]
[399246133,1766201451292,-253.4450449,0.00017,2]
[399246134,1766201451303,-2273.05774565,0.00017,2]
[399246136,1766201451314,-3637.15312271,0.00017,2]
[399246137,1766201451336,-1255.0,0.00015055,2]
[399246138,1766201451345,-7720.40587101,0.00017,2]
[399246139,1766201451356,-8763.45477203,0.00017,2]
[399246140,1766201451367,-1216.11829197,0.00017,2]
[399246141,1766201451407,-198.0,0.0001414,2]
[399246142,1766201451417,-181.0,0.00014168,2]
[399246143,1766201451426,-4133.11668388,0.00017,2]
[399246144,1766201451437,-6542.92583996,0.00017,2]
[399246160,1766201531092,-250.0,0.0001027,2]
[399246220,1766201957011,500.0,0.00011198,2]
[399246234,1766202002772,242.0,0.00011297,2]
[399246260,1766202106947,500.0,0.00011198,2]
[399246270,1766202130674,500.0,0.00011297,2]
[399246272,1766202131008,151.0,0.00011297,2]
[399246273,1766202131260,500.0,0.00011297,2]
[399246275,1766202131501,200.0,0.00011297,2]
[399246276,1766202131572,151.0,0.00011297,2]
[399246277,1766202131843,500.0,0.00011297,2]
[399246278,1766202132183,151.0,0.00011297,2]
[399246279,1766202132512,500.0,0.00011297,2]
[399246280,1766202132779,151.0,0.00011297,2]
[399246281,1766202133070,500.0,0.00011297,2]
[399246282,1766202133361,151.0,0.00011297,2]
[399246283,1766202133667,500.0,0.00011297,2]
[399246284,1766202134254,151.0,0.00011297,2]
[399246285,1766202134318,500.0,0.00011297,2]
[399246286,1766202134656,151.0,0.00011297,2]
[399246287,1766202134871,500.0,0.00011297,2]
[399246288,1766202135276,151.0,0.00011297,2]
[399246289,1766202135458,500.0,0.00011297,2]
[399246290,1766202136021,151.0,0.00011297,2]
[399246291,1766202136075,500.0,0.00011297,2]
[399246292,1766202136512,151.0,0.00011297,2]
[399246293,1766202136667,500.0,0.00011297,2]
[399246295,1766202137136,151.0,0.00011297,2]
[399246296,1766202138584,151.0,0.00011297,2]
[399246297,1766202139279,151.0,0.00011297,2]
[399246298,1766202139491,200.0,0.00011297,2]
[399246299,1766202139807,500.0,0.00011297,2]
[399246300,1766202139843,151.0,0.00011297,2]
[399246301,1766202140464,151.0,0.00011297,2]
[399246302,1766202141071,93.01,0.00011297,2]
[399246303,1766202141094,57.99,0.00011297,2]
[399246304,1766202141691,151.0,0.00011297,2]
[399246305,1766202142818,151.0,0.00011297,2]
[399246306,1766202143429,151.0,0.00011297,2]
[399246307,1766202144038,151.0,0.00011297,2]
[399246308,1766202144737,151.0,0.00011297,2]
[399246309,1766202145246,151.0,0.00011297,2]
[399246312,1766202145826,151.0,0.00011297,2]
[399246313,1766202145859,-195.0,0.00011297,2]
[399246314,1766202145887,-250.0,0.00011297,2]
[399246315,1766202145915,-195.0,0.00011297,2]
[399246316,1766202145969,200.0,0.00011297,2]
[399246317,1766202146331,500.0,0.00011297,2]
[399246318,1766202146437,151.0,0.00011297,2]
[399246319,1766202146925,500.0,0.00011297,2]
[399246320,1766202147045,151.0,0.00011297,2]
[399246321,1766202147535,500.0,0.00011297,2]
[399246322,1766202147804,151.0,0.00011297,2]
[399246323,1766202148162,500.0,0.00011297,2]
[399246324,1766202148761,500.0,0.00011297,2]
[399246325,1766202148893,151.0,0.00011297,2]
[399246326,1766202149382,500.0,0.00011297,2]
[399246327,1766202149554,151.0,0.00011297,2]
[399246328,1766202150019,500.0,0.00011297,2]
[399246329,1766202150172,151.0,0.00011297,2]
[399246330,1766202150641,500.0,0.00011297,2]
[399246331,1766202150769,151.0,0.00011297,2]
[399246332,1766202151277,500.0,0.00011297,2]
[399246333,1766202151437,151.0,0.00011297,2]
[399246334,1766202151878,500.0,0.00011297,2]
[399246335,1766202152986,500.0,0.00011297,2]
[399246351,1766202235501,500.0,0.00011198,2]
[399246355,1766202270002,305.0,0.00011288,2]
[399246387,1766202374434,300.0,0.00011288,2]
[399246451,1766202425358,200.0,0.00011298,2]
[399246456,1766202430600,500.0,0.00011298,2]
[399246457,1766202431371,7.01,0.00011298,2]
[399246458,1766202431396,143.99,0.00011298,2]
[399246459,1766202431774,500.0,0.00011298,2]
[399246460,1766202431972,151.0,0.00011298,2]
[399246461,1766202432330,500.0,0.00011298,2]
[399246462,1766202432588,151.0,0.00011298,2]
[399246463,1766202432935,500.0,0.00011298,2]
[399246464,1766202433546,500.0,0.00011298,2]
[399246465,1766202433641,151.0,0.00011298,2]
[399246466,1766202434137,500.0,0.00011298,2]
[399246467,1766202434774,151.0,0.00011298,2]
[399246468,1766202435028,500.0,0.00011298,2]
[399246469,1766202435407,151.0,0.00011298,2]
[399246470,1766202435627,500.0,0.00011298,2]
[399246471,1766202436017,151.0,0.00011298,2]
[399246472,1766202436255,500.0,0.00011298,2]
[399246473,1766202436613,151.0,0.00011298,2]
[399246474,1766202436874,500.0,0.00011298,2]
[399246475,1766202437249,151.0,0.00011298,2]
[399246476,1766202437506,500.0,0.00011298,2]
[399246477,1766202437879,151.0,0.00011298,2]
[399246478,1766202438479,151.0,0.00011298,2]
[399246479,1766202439068,151.0,0.00011298,2]
[399246480,1766202439681,151.0,0.00011298,2]
[399246481,1766202440292,151.0,0.00011298,2]
[399246482,1766202441376,151.0,0.00011298,2]
[399246483,1766202442596,151.0,0.00011298,2]
[399246484,1766202443227,151.0,0.00011298,2]
[399246485,1766202443936,151.0,0.00011298,2]
[399246486,1766202444556,151.0,0.00011298,2]
[399246487,1766202445180,151.0,0.00011298,2]
[399246488,1766202446865,500.0,0.00011298,2]
[399246489,1766202447485,500.0,0.00011298,2]
[399246490,1766202448108,500.0,0.00011298,2]
[399246491,1766202448183,-190.32381133,0.00011298,2]
[399246492,1766202448217,-250.0,0.00011311,2]
[399246493,1766202448437,151.0,0.00011298,2]
[399246494,1766202448709,500.0,0.00011298,2]
[399246495,1766202449557,151.0,0.00011298,2]
[399246496,1766202449619,500.0,0.00011298,2]
[399246497,1766202449658,500.0,0.00011298,2]
[399246498,1766202449736,151.0,0.00011298,2]
[399246499,1766202449962,500.0,0.00011298,2]
[399246500,1766202450268,151.0,0.00011298,2]
[399246501,1766202450572,500.0,0.00011298,2]
[399246502,1766202450922,151.0,0.00011298,2]
[399246503,1766202451188,500.0,0.00011298,2]
[399246504,1766202452001,151.0,0.00011298,2]
[399246505,1766202452338,500.0,0.00011298,2]
[399246506,1766202452662,151.0,0.00011298,2]
[399246507,1766202452886,500.0,0.00011298,2]
[399246508,1766202453267,151.0,0.00011298,2]
[399246509,1766202453505,500.0,0.00011298,2]
[399246510,1766202453911,151.0,0.00011298,2]
[399246511,1766202454473,200.0,0.00011298,2]
[399246512,1766202454545,151.0,0.00011298,2]
[399246513,1766202455172,151.0,0.00011298,2]
[399246514,1766202459027,200.0,0.00011298,2]
[399246555,1766202632191,-195.0,0.00011336,2]
[399246556,1766202632205,-243.0,0.00011336,2]
[399246557,1766202632216,-250.0,0.00011347,2]
[399246558,1766202632227,-300.0,0.0001137,2]
[399246559,1766202632239,-195.0,0.0001155,2]
[399246560,1766202632252,-500.0,0.00011846,2]
[399246561,1766202632262,-200.0,0.00011846,2]
[399246562,1766202632273,-200.0,0.00011846,2]
[399246563,1766202632285,-15523.62,0.00012133,2]
[399246564,1766202632296,-300.0,0.00012164,2]
[399246565,1766202632306,-1200.0,0.00012164,2]
[399246566,1766202632318,-68105.2,0.00012165,2]
[399246567,1766202632329,-322.96,0.00012245,2]
[399246568,1766202632340,-1944.13,0.00012325,2]
[399246569,1766202632351,-500.0,0.00012394,2]
[399246570,1766202632364,-200.0,0.00012394,2]
[399246571,1766202632375,-200.0,0.00012394,2]
[399246572,1766202632385,-507.11723853,0.00012426,2]
[399246573,1766202632396,-7620.27,0.00012427,2]
[399246574,1766202632407,-150.99,0.00012427,2]
[399246575,1766202632418,-299.99,0.00012427,2]
[399246576,1766202632429,-250.0,0.00012427,2]
[399246577,1766202632439,-195.0,0.00012457,2]
[399246578,1766202632449,-250.0,0.00012457,2]
[399246579,1766202632461,-195.0,0.00012457,2]
[399246580,1766202632472,-195.0,0.00012469,2]
[399246581,1766202632483,-1852.42,0.0001249,2]
[399246582,1766202632494,-4811.0,0.00012507,2]
[399246583,1766202632505,-3251.47,0.00012574,2]
[399246584,1766202632514,-150.0,0.0001265,2]
[399246585,1766202632526,-11250.99375902,0.00012651,2]
[399246586,1766202632536,-999.99,0.00012651,2]
[399246587,1766202632546,-9999.99,0.00012651,2]
[399246588,1766202632556,-3677.47,0.00012651,2]
[399246589,1766202632566,-9999.99,0.00012651,2]
[399246590,1766202632576,-29212.41,0.00012651,2]
[399246591,1766202632589,-9999.99,0.00012651,2]
[399246592,1766202632601,-27680.72,0.00012763,2]
[399246593,1766202632611,-150.99,0.00012941,2]
[399246594,1766202632620,-9999.99,0.00012941,2]
[399246595,1766202632631,-500.0,0.00012942,2]
[399246596,1766202632641,-200.0,0.00012942,2]
[399246597,1766202632651,-200.0,0.00012942,2]
[399246598,1766202632661,-500.0,0.00013028,2]
[399246599,1766202632671,-200.00634622,0.00013145,2]
[399246600,1766202632680,-752.83,0.00013642,2]
[399246603,1766202632690,-500.0,0.00013698,2]
[399246604,1766202632701,-500.0,0.00013698,2]
[399246605,1766202632710,-360.14623993,0.00013698,2]
[399246606,1766202632721,-500.0,0.00013698,2]
[399246607,1766202632731,-500.0,0.00013698,2]
[399246608,1766202632741,-500.0,0.00013698,2]
[399246609,1766202632753,-500.0,0.00013698,2]
[399246610,1766202632764,-500.0,0.00013698,2]
[399246611,1766202632774,-512.97175847,0.00013698,2]
[399246612,1766202632783,-500.0,0.00013698,2]
[399246613,1766202632793,-500.0,0.00013698,2]
[399246614,1766202632803,-500.0,0.00013698,2]
[399246615,1766202632813,-500.0,0.00013698,2]
[399246616,1766202632823,-500.0,0.00013698,2]
[399246617,1766202632833,-632.65,0.00013698,2]
[399246618,1766202632843,-507.07906874,0.00013698,2]
[399246619,1766202632853,-500.0,0.00013698,2]
[399246620,1766202632863,-521.8118549,0.00013698,2]
[399246621,1766202632873,-500.0,0.00013698,2]
[399246622,1766202632883,-500.0,0.00013698,2]
[399246623,1766202632892,-500.0,0.00013698,2]
[399246624,1766202632902,-500.0,0.00013698,2]
[399246625,1766202632912,-500.0,0.00013698,2]
[399246626,1766202632922,-500.0,0.00013698,2]
[399246627,1766202632932,-500.0,0.00013698,2]
[399246628,1766202632942,-500.0,0.00013698,2]
[399246629,1766202632952,-531.25264543,0.00013698,2]
[399246630,1766202632962,-500.0,0.00013698,2]
[399246631,1766202632973,-500.0,0.00013698,2]
[399246632,1766202632983,-500.0,0.00013698,2]
[399246633,1766202632993,-510.77645617,0.00013698,2]
[399246634,1766202633003,-501.12856212,0.00013698,2]
[399246635,1766202633013,-500.0,0.00013698,2]
[399246636,1766202633024,-505.03580841,0.00013698,2]
[399246637,1766202633034,-500.0,0.00013698,2]
[399246638,1766202633044,-500.0,0.00013698,2]
[399246639,1766202633054,-506.44561835,0.00013698,2]
[399246640,1766202633064,-500.0,0.00013698,2]
[399246641,1766202633074,-260.33789622,0.00013698,2]
[399246642,1766202633084,-500.0,0.00013698,2]
[399246643,1766202633094,-500.0,0.00013698,2]
[399246644,1766202633104,-500.0,0.00013698,2]
[399246645,1766202633115,-500.0,0.00013698,2]
[399246646,1766202633125,-500.0,0.00013698,2]
[399246647,1766202633135,-500.0,0.00013698,2]
[399246648,1766202633146,-502.26583075,0.00013698,2]
[399246649,1766202633156,-915.57,0.00013698,2]
[399246650,1766202633166,-151.83,0.00013698,2]
[399246651,1766202633177,-500.0,0.00013698,2]
[399246652,1766202633188,-200.0,0.00013699,2]
[399246653,1766202633199,-169.28855325,0.00013773,2]
[399246654,1766202633209,-172.60476821,0.00013773,2]
[399246655,1766202633220,-166.07222089,0.00013773,2]
[399246656,1766202633231,-163.72295793,0.00013773,2]
[399246657,1766202633242,-500.0,0.00013773,2]
[399246658,1766202633257,-562.57939524,0.00013773,2]
[399246659,1766202633267,-162.0459649,0.00013773,2]
[399246660,1766202633277,-500.0,0.00013773,2]
[399246661,1766202633287,-162.87078705,0.00013773,2]
[399246662,1766202633297,-500.0,0.00013773,2]
[399246663,1766202633307,-515.85064943,0.00013773,2]
[399246664,1766202633317,-500.0,0.00013773,2]
[399246665,1766202633327,-500.0,0.00013773,2]
[399246666,1766202633339,-500.0,0.00013773,2]
[399246667,1766202633349,-915.57,0.00013972,2]
[399246668,1766202633359,-247.05,0.00014032,2]
[399246669,1766202633370,-207.4,0.00014037,2]
[399246670,1766202633381,-88794.615,0.00014121,2]
[399246671,1766202633392,-1513.62715279,0.00014212,2]
[399246672,1766202633402,-2500.0,0.00014214,2]
[399246673,1766202633413,-915.57,0.00014246,2]
[399246674,1766202633423,-500.0,0.00014298,2]
[399246675,1766202633433,-500.0,0.00014298,2]
[399246676,1766202633443,-500.0,0.00014298,2]
[399246677,1766202633455,-39665.58817023,0.000143,2]
[399246678,1766202633465,-24726.66,0.00014312,2]
[399246679,1766202633476,-12746.64,0.00014314,2]
[399246680,1766202633486,-1000.84503146,0.00014321,2]
[399246681,1766202633496,-1000.0,0.00014321,2]
[399246682,1766202633505,-1002.74001595,0.00014321,2]
[399246683,1766202633515,-453.43519306,0.00014321,2]
[399246684,1766202633525,-1000.0,0.00014321,2]
[399246685,1766202633535,-1000.0,0.00014321,2]
[399246686,1766202633545,-200.0,0.00014507,2]
[399246687,1766202633555,-207.4,0.00014507,2]
[399246688,1766202633565,-215.0738,0.00014507,2]
[399246689,1766202633575,-223.0315306,0.00014507,2]
[399246690,1766202633586,-333.13114268,0.00014507,2]
[399246691,1766202633597,-250.0,0.00014507,2]
[399246692,1766202633607,-250.0,0.00014507,2]
[399246693,1766202633618,-500.0,0.00014507,2]
[399246694,1766202633846,-250.0,0.00014507,2]
[399246695,1766202633856,-500.0,0.00014507,2]
[399246696,1766202633866,-500.0,0.00014507,2]
[399246697,1766202633876,-250.0,0.00014507,2]
[399246698,1766202633886,-500.0,0.00014507,2]
[399246699,1766202633895,-500.0,0.00014507,2]
[399246700,1766202633905,-500.0,0.00014507,2]
[399246701,1766202633915,-250.0,0.00014507,2]
[399246702,1766202633926,-500.0,0.00014507,2]
[399246703,1766202633936,-500.0,0.00014507,2]
[399246704,1766202633947,-250.0,0.00014507,2]
[399246705,1766202633956,-500.0,0.00014507,2]
[399246706,1766202633966,-250.0,0.00014507,2]
[399246707,1766202633977,-152.47844731,0.00014507,2]
[399246708,1766202633987,-500.0,0.00014507,2]
[399246709,1766202633997,-500.0,0.00014507,2]
[399246710,1766202634008,-250.0,0.00014507,2]
[399246711,1766202634019,-500.0,0.00014507,2]
[399246712,1766202634030,-500.0,0.00014507,2]
[399246713,1766202634040,-250.0,0.00014507,2]
[399246714,1766202634050,-500.0,0.00014507,2]
[399246715,1766202634060,-500.0,0.00014507,2]
[399246716,1766202634070,-250.0,0.00014507,2]
[399246717,1766202634080,-500.0,0.00014507,2]
[399246718,1766202634090,-500.0,0.00014507,2]
[399246719,1766202634100,-250.0,0.00014507,2]
[399246720,1766202634109,-151.0,0.00014507,2]
[399246721,1766202634119,-500.0,0.00014507,2]
[399246722,1766202634129,-500.0,0.00014507,2]
[399246723,1766202634138,-500.0,0.00014507,2]
[399246724,1766202634148,-500.0,0.00014507,2]
[399246725,1766202634157,-500.0,0.00014507,2]
[399246726,1766202634167,-500.0,0.00014507,2]
[399246727,1766202634176,-500.0,0.00014507,2]
[399246728,1766202634186,-620.0,0.00014507,2]
[399246729,1766202634196,-574.12855637,0.00014507,2]
[399246730,1766202634207,-500.0,0.00014507,2]
[399246731,1766202634216,-500.0,0.00014507,2]
[399246732,1766202634226,-500.0,0.00014507,2]
[399246733,1766202634235,-500.0,0.00014507,2]
[399246734,1766202634246,-500.0,0.00014507,2]
[399246735,1766202634259,-500.0,0.00014507,2]
[399246736,1766202634268,-500.0,0.00014507,2]
[399246737,1766202634278,-500.0,0.00014507,2]
[399246738,1766202634288,-500.0,0.00014507,2]
[399246739,1766202634299,-500.0,0.00014507,2]
[399246740,1766202634308,-500.0,0.00014507,2]
[399246741,1766202634319,-500.0,0.00014507,2]
[399246742,1766202634329,-500.0,0.00014507,2]
[399246743,1766202634339,-500.0,0.00014507,2]
[399246744,1766202634350,-500.0,0.00014507,2]
[399246745,1766202634360,-500.0,0.00014507,2]
[399246746,1766202634371,-500.0,0.00014507,2]
[399246747,1766202634381,-500.0,0.00014507,2]
[399246748,1766202634391,-500.0,0.00014507,2]
[399246749,1766202634401,-500.0,0.00014507,2]
[399246750,1766202634411,-500.0,0.00014507,2]
[399246751,1766202634421,-500.0,0.00014507,2]
[399246752,1766202634431,-500.0,0.00014507,2]
[399246753,1766202634441,-300.0,0.00014507,2]
[399246754,1766202634450,-500.0,0.00014507,2]
[399246755,1766202634460,-500.0,0.00014507,2]
[399246756,1766202634470,-500.0,0.00014507,2]
[399246757,1766202634481,-500.0,0.00014507,2]
[399246758,1766202634490,-500.0,0.00014507,2]
[399246759,1766202634500,-500.0,0.00014507,2]
[399246760,1766202634510,-500.0,0.00014507,2]
[399246761,1766202634521,-500.0,0.00014507,2]
[399246762,1766202634530,-301.37247362,0.00014507,2]
[399246763,1766202634540,-500.0,0.00014507,2]
[399246764,1766202634549,-500.0,0.00014507,2]
[399246765,1766202634558,-1199.0,0.00014507,2]
[399246766,1766202634568,-500.0,0.00014507,2]
[399246767,1766202634577,-500.0,0.00014507,2]
[399246769,1766202634586,-500.0,0.00014507,2]
[399246770,1766202634596,-500.0,0.00014507,2]
[399246771,1766202634605,-500.0,0.00014507,2]
[399246772,1766202634614,-500.0,0.00014507,2]
[399246773,1766202634623,-500.0,0.00014507,2]
[399246774,1766202634633,-500.0,0.00014507,2]
[399246775,1766202634642,-500.0,0.00014507,2]
[399246776,1766202634651,-279.09664279,0.00014507,2]
[399246777,1766202634693,-319.61603897,0.00014507,2]
[399246778,1766202634703,-915.57,0.0001452,2]
[399246779,1766202634711,-1513.62715277,0.00014596,2]
[399246780,1766202634722,-11648.12,0.00014605,2]
[399246781,1766202634731,-2424.23741887,0.00014684,2]
[399246782,1766202634740,-500.0,0.00014717,2]
[399246783,1766202634750,-157.0,0.00014718,2]
[399246784,1766202634759,-157.0,0.00014718,2]
[399246785,1766202634768,-157.0,0.00014718,2]
[399246786,1766202634777,-157.47713372,0.00014718,2]
[399246787,1766202634786,-3600.13984871,0.00014783,2]
[399246788,1766202634796,-915.57,0.00014794,2]
[399246789,1766202634805,-1500.0,0.00014868,2]
[399246790,1766202634814,-1211.67995912,0.00014868,2]
[399246791,1766202634823,-855.16426766,0.00014868,2]
[399246792,1766202634832,-2424.23741887,0.00014961,2]
[399246793,1766202634841,-1513.62715277,0.0001498,2]
[399246794,1766202634851,-374.32373681,0.00014999,2]
[399246795,1766202634861,-595.37131296,0.00015055,2]
[399246796,1766202634870,-915.57,0.00015068,2]
[399246797,1766202634880,-151.0,0.00015079,2]
[399246798,1766202634890,-500.0,0.00015079,2]
[399246799,1766202634899,-500.0,0.00015079,2]
[399246800,1766202634908,-500.0,0.00015079,2]
[399246801,1766202634919,-24901.49990358,0.0001508,2]
[399246802,1766202634931,-11460.70014078,0.0001508,2]
[399246803,1766202634958,-1189.407222,0.0001508,2]
[399246804,1766202634969,-823.01026678,0.0001508,2]
[399246805,1766202634984,-651.02931078,0.0001508,2]
[399246806,1766202634995,-3072.75616085,0.0001508,2]
[399246807,1766202635006,-4115.3152815,0.0001508,2]
[399246808,1766202635021,-413.8620027,0.0001508,2]
[399246811,1766202638824,-377.27771586,0.00012164,2]
[399246812,1766202638833,-241.60551601,0.00012164,2]
[399246813,1766202638842,-500.0,0.00013699,2]
[399246814,1766202638851,-539.72117841,0.00013699,2]
[399246815,1766202638860,-555.5252472,0.00013699,2]
[399246816,1766202638869,-500.0,0.00013773,2]
[399246817,1766202638879,-150.24,0.00013773,2]
[399246818,1766202638888,-152.88,0.00013773,2]
[399246819,1766202638897,-594.53896978,0.00014321,2]
[399246820,1766202638907,-157.0,0.00014718,2]
[399246821,1766202638916,-157.0,0.00014718,2]
[399246822,1766202638925,-108855.75335995,0.0001508,2]
[399246823,1766202638935,-500.0,0.00015081,2]
[399246825,1766202638944,-500.0,0.00015081,2]
[399246827,1766202638953,-500.0,0.00015081,2]
[399246829,1766202638963,-500.0,0.00015081,2]
[399246831,1766202638971,-543.43338651,0.00015081,2]
[399246833,1766202638981,-500.0,0.00015081,2]
[399246835,1766202638990,-156.42387419,0.00015081,2]
[399246837,1766202638999,-500.0,0.00015081,2]
[399246839,1766202639008,-500.0,0.00015081,2]
[399246841,1766202639017,-500.0,0.00015081,2]
[399246843,1766202639027,-244.59651847,0.00015081,2]